bitfinex-derivatives/quotes_ETHF0:USTF0_20240910
["timestamp","ask_amount","ask_price","bid_price","bid_amount"]
[1725982234612,0.42544,2350.4,2350.0,0.8234]
[1725982234915,0.42551,2350.0,2349.6,0.216]
[1725982235116,0.42555,2349.8,2349.5,0.776]
[1725982235319,0.3866,2349.9,2349.6,0.42557]
[1725982235613,4.9166,2350.3,2349.6,2.99]
[1725982235819,0.42547,2350.2,2349.8,0.42554]
[1725982236020,0.42547,2350.2,2349.9,0.42552]
[1725982236210,0.7658,2350.3,2350.0,0.4255]
[1725982236518,0.76916278,2350.4,2350.1,0.4026]
[1725982236810,2.99,2350.5,2350.1,0.8007]
[1725982237017,0.42545,2350.3,2350.1,0.4026]
[1725982237212,0.42545,2350.3,2349.9,0.42551]
[1725982237422,0.83007,2350.2,2349.8,0.42554]
[1725982237618,0.377,2350.6,2350.0,2.99]
[1725982237807,0.377,2350.6,2350.2,0.42546]
[1725982237808,0.80241,2350.6,2350.2,0.42546]
[1725982238115,0.42542,2350.5,2350.3,0.3981]
[1725982238310,0.42543,2350.4,2350.3,0.3981]
[1725982238830,0.216,2351.5,2350.3,13.6425]
[1725982239117,6.32104228,2352.1,2350.7,2.99]
[1725982239118,0.42527,2351.3,2350.7,2.99]
[1725982239417,2.99,2351.8,2350.9,2.99]
[1725982239614,0.42523,2351.6,2351.2,0.42527]
[1725982239807,2.99,2351.8,2350.8,41.1854]
[1725982239808,0.42525,2351.5,2351.1,3.4153]
[1725982240008,0.42525,2351.5,2350.8,41.4014]
[1725982240009,0.42526,2351.4,2351.0,0.79962]
[1725982240210,1.063,2351.7,2350.9,2.99]
[1725982240409,0.42526,2351.4,2351.0,0.42531]
[1725982240612,0.42527,2351.3,2350.8,41.1854]
[1725982240813,1.0631,2351.5,2350.8,41.61075]
[1725982241016,0.42529,2351.2,2350.9,0.42533]
[1725982241208,0.42529,2351.3,2350.8,41.1854]
[1725982241518,0.4019,2351.5,2350.9,0.42533]
[1725982241817,0.42528,2351.3,2350.9,0.42533]
[1725982242022,0.3919,2351.4,2350.8,0.3854]
[1725982242519,0.42532,2351.1,2350.8,0.3854]
[1725982242719,1.45508,2351.4,2350.8,0.3854]
[1725982242911,0.4253,2351.2,2350.8,0.81076]
[1725982243115,0.4253,2351.2,2350.8,0.81075]
[1725982243315,0.4253,2351.2,2350.9,0.42534]
[1725982243826,0.42527,2351.3,2350.9,0.42534]
[1725982244018,0.3919,2351.4,2350.8,0.81075]
[1725982244221,0.42529,2351.2,2350.9,0.42534]
[1725982244621,0.42528,2351.3,2350.9,0.42534]
[1725982244817,0.42529,2351.2,2350.9,0.42534]
[1725982245117,0.42528,2351.3,2351.0,0.42532]
[1725982245317,0.3919,2351.4,2351.0,0.42532]
[1725982245622,0.42534,2351.0,2350.8,0.3854]
[1725982245823,0.42531,2351.1,2350.8,0.81076]
[1725982246026,0.42533,2351.0,2350.8,0.3854]
[1725982246228,0.42532,2351.1,2350.8,0.81076]
[1725982246428,0.42534,2350.9,2350.8,0.3854]
[1725982246618,1.06318,2351.3,2350.5,0.8036]
[1725982246619,0.42537,2350.8,2350.5,0.8036]
[1725982246815,0.80917,2350.8,2350.5,0.8036]
[1725982247021,0.80917,2350.8,2350.5,5.058]
[1725982247320,0.3838,2350.8,2350.6,0.42539]
[1725982248328,0.3838,2350.8,2350.7,0.42538]
[1725982248827,1.06345,2350.7,2349.7,11.114]
[1725982249015,4.6374,2350.8,2349.8,1.1537]
[1725982249016,0.42544,2350.4,2349.8,1.1537]
[1725982249323,0.42543,2350.4,2350.1,0.42547]
[1725982249522,1.06352,2350.6,2349.8,1.1537]
[1725982249722,0.3838,2350.8,2349.9,1.06382]
[1725982249916,0.3838,2350.8,2350.0,1.06377]
[1725982249917,0.42541,2350.6,2350.0,1.06377]
[1725982250118,0.4254,2350.6,2350.0,1.06377]
[1725982250326,0.42539,2350.7,2350.5,0.42541]
[1725982250522,0.3838,2350.8,2350.1,1.0637]
[1725982250725,0.42539,2350.7,2350.5,0.42541]
[1725982250921,0.42539,2350.7,2350.4,0.42542]
[1725982251125,0.4254,2350.6,2350.3,0.42544]
[1725982251326,0.4254,2350.6,2350.4,0.42543]
[1725982251724,0.4254,2350.6,2350.4,4.67983]
[1725982251924,0.3838,2350.8,2350.4,4.67983]
[1725982252130,0.42539,2350.7,2350.4,0.42542]
[1725982252327,0.42539,2350.7,2350.1,1.06373]
[1725982252525,0.3838,2350.8,2350.4,0.42542]
[1725982252526,0.4254,2350.6,2350.4,0.42542]
[1725982252727,0.3838,2350.8,2350.2,1.06365]
[1725982253033,0.42538,2350.7,2350.5,0.4254]
[1725982253234,0.80917,2350.8,2350.6,0.4254]
[1725982253826,0.80917,2350.8,2350.6,0.42539]
[1725982254229,1.06318,2351.3,2350.7,4.2544]
[1725982254431,0.3706,2351.1,2350.8,0.3659]
[1725982254634,0.3706,2351.1,2350.9,0.42534]
[1725982255025,0.3706,2351.1,2351.0,0.42532]
[1725982255231,0.79591,2351.1,2350.9,0.42534]
[1725982255535,0.79591,2351.1,2350.8,0.3659]
[1725982255536,0.42533,2351.0,2350.8,0.3659]
[1725982256037,0.42533,2351.0,2350.8,0.79126]
[1725982256634,0.79592,2351.1,2350.9,0.42533]
[1725982256833,0.42533,2351.0,2350.8,0.79125]
[1725982257025,0.79592,2351.1,2350.9,0.42534]
[1725982257540,0.42532,2351.0,2350.8,0.79125]
[1725982258035,0.79592,2351.1,2350.9,0.42534]
[1725982258237,0.79592,2351.1,2350.8,0.3659]
[1725982258238,0.3706,2351.1,2350.8,0.3659]
[1725982258433,0.3706,2351.1,2350.9,0.81883]
[1725982258828,0.3706,2351.1,2351.0,0.42532]
[1725982259237,0.79591,2351.1,2350.9,0.81883]
[1725982259539,0.3706,2351.1,2351.0,0.42532]
[1725982260231,0.3706,2351.1,2350.8,0.79126]
[1725982260232,0.42534,2351.0,2350.8,0.79126]
[1725982260431,0.42538,2350.8,2350.6,0.42539]
[1725982260653,0.7471,2351.0,2350.4,0.3865]
[1725982260847,4.4271,2351.0,2350.0,0.3737]
[1725982261143,1.06362,2350.4,2349.8,0.5896]
[1725982261339,1.1994,2350.3,2349.8,0.3736]
[1725982261541,1.06373,2350.1,2349.3,4.402]
[1725982261836,3.68,2350.2,2349.4,0.42561]
[1725982262045,1.06373,2350.1,2349.2,1.20454]
[1725982262344,1.06373,2350.1,2348.9,0.4257]
[1725982262345,0.42562,2349.4,2348.9,0.4257]
[1725982262538,0.42561,2349.5,2349.0,0.42567]
[1725982262741,0.42562,2349.4,2348.9,0.4257]
[1725982263345,0.79849,2349.6,2348.7,41.5703]
[1725982263647,0.79849,2349.6,2349.0,0.42568]
[1725982263648,0.4256,2349.5,2349.0,0.42568]
[1725982263842,0.42565,2349.2,2348.7,1.19603]
[1725982264235,0.766,2349.5,2348.7,1.19603]
[1725982264436,0.42566,2349.2,2348.7,0.7703]
[1725982264651,0.766,2349.5,2348.7,1.19604]
[1725982264835,0.766,2349.5,2348.7,0.7703]
[1725982265237,0.42562,2349.4,2348.9,0.4257]
[1725982265941,0.42562,2349.4,2348.7,0.7703]
[1725982265942,0.42563,2349.3,2348.8,0.42571]
[1725982266142,0.766,2349.5,2348.7,1.19603]
[1725982266349,0.766,2349.5,2348.7,0.79934]
[1725982266350,0.42566,2349.2,2348.7,0.79934]
[1725982266737,0.766,2349.5,2348.8,0.42571]
[1725982266945,0.766,2349.5,2348.7,0.3736]
[1725982267137,0.8031,2349.5,2349.0,0.42567]
[1725982267446,0.79849,2349.6,2349.1,0.42566]
[1725982267641,0.79849,2349.6,2348.8,3.68]
[1725982267642,0.3729,2349.6,2348.8,5.13131]
[1725982267853,0.3846,2350.0,2349.1,3.68]
[1725982268039,0.42555,2349.8,2349.4,0.42561]
[1725982268236,0.42555,2349.8,2349.4,0.4256]
[1725982268441,0.42555,2349.8,2349.5,0.4256]
[1725982268637,0.80303,2349.9,2349.5,0.4256]
[1725982268850,0.42549,2350.1,2349.7,0.42555]
[1725982269043,0.42548,2350.2,2349.8,0.42553]
[1725982269249,0.4,2350.3,2349.7,3.68]
[1725982269549,4.144,2350.5,2350.1,0.42548]
[1725982269550,4.56943,2350.5,2350.1,0.42548]
[1725982269745,0.42543,2350.4,2349.8,0.3905]
[1725982269935,0.42543,2350.4,2350.1,0.42548]
[1725982270449,0.42545,2350.3,2350.0,0.4255]
[1725982270650,4.144,2350.5,2349.9,0.42552]
[1725982270852,0.42548,2350.2,2349.8,0.7771]
[1725982271150,0.42546,2350.3,2349.9,0.42552]
[1725982271355,0.42546,2350.3,2349.8,0.7771]
[1725982271543,0.42547,2350.2,2349.9,0.42551]
[1725982271738,0.42546,2350.3,2350.0,0.4255]
[1725982272051,0.42548,2350.2,2349.9,0.42552]
[1725982272348,1.06359,2350.4,2349.6,0.387]
[1725982272549,1.06359,2350.4,2349.8,0.42554]
[1725982272550,0.4255,2350.1,2349.8,0.42554]
[1725982272742,0.42551,2350.0,2349.7,0.42555]
[1725982272943,0.42551,2350.0,2349.8,40.8]
[1725982273243,0.42551,2350.0,2349.8,0.42554]
[1725982273750,0.42551,2350.0,2349.6,0.387]
[1725982273751,1.06359,2350.4,2349.1,3.68]
[1725982273948,0.42557,2349.7,2349.4,0.42561]
[1725982274150,0.7673,2349.9,2349.1,3.68]
[1725982274453,0.3812,2349.9,2349.7,0.42555]
[1725982274655,0.3812,2349.9,2349.8,0.42554]
[1725982274847,0.80673,2349.9,2349.7,0.42556]
[1725982275048,0.42554,2349.8,2349.6,0.42557]
[1725982275353,0.80673,2349.9,2349.6,0.42557]
[1725982275747,0.3812,2349.9,2349.1,3.68]
[1725982275950,0.3812,2349.9,2349.4,0.4256]
[1725982276247,0.42554,2349.8,2349.5,0.42559]
[1725982276451,0.42554,2349.8,2349.6,0.42558]
[1725982276754,0.42554,2349.8,2349.5,0.42559]
[1725982276956,0.3812,2349.9,2349.1,3.68]
[1725982277155,0.80673,2349.9,2349.6,0.42557]
[1725982277351,0.80673,2349.9,2349.7,0.42556]
[1725982277557,0.42555,2349.8,2349.1,3.68]
[1725982277750,0.42555,2349.8,2348.9,1.1328]
[1725982277751,5.11599,2349.8,2348.9,0.7642]
[1725982277943,0.42562,2349.4,2348.9,0.7642]
[1725982278255,5.11599,2349.8,2349.3,0.42562]
[1725982278256,0.42559,2349.6,2349.3,0.42562]
[1725982278550,1.43598,2349.8,2349.3,0.42562]
[1725982278551,0.4256,2349.5,2349.3,0.42563]
[1725982278754,1.43598,2349.8,2349.2,0.42563]
[1725982278953,0.42563,2349.4,2348.9,0.7642]
[1725982279155,0.42563,2349.4,2349.2,0.42564]
[1725982279457,0.42557,2349.7,2349.5,0.4256]
[1725982279657,0.42555,2349.8,2349.6,0.42557]
[1725982280048,0.42556,2349.7,2349.5,0.42558]
[1725982280449,0.42556,2349.7,2349.1,1.06414]
[1725982280450,0.42556,2349.7,2349.6,0.42558]
[1725982281256,0.3812,2349.9,2349.7,0.42556]
[1725982281557,0.42553,2349.9,2349.2,1.06411]
[1725982281755,0.42553,2349.9,2349.4,1.06402]
[1725982281959,1.06377,2350.0,2349.6,0.42557]
[1725982282165,0.42557,2349.7,2349.6,0.42558]
[1725982282556,0.42555,2349.8,2349.6,0.42558]
[1725982283257,0.42556,2349.7,2349.5,0.42559]
[1725982283650,0.42557,2349.7,2349.5,0.42559]
[1725982283853,0.42556,2349.8,2349.2,1.06413]
[1725982284053,0.42556,2349.7,2349.6,0.42557]
[1725982284254,0.42555,2349.8,2349.6,0.42558]
[1725982284456,1.06377,2350.0,2349.6,0.42558]
[1725982284759,0.42556,2349.7,2349.5,0.42559]
[1725982285359,1.06382,2349.9,2349.1,0.3677]
[1725982285560,1.44165,2350.1,2349.2,1.06411]
[1725982285759,1.44165,2350.1,2349.6,0.42557]
[1725982285760,0.42556,2349.8,2349.6,0.42557]
[1725982286063,0.42556,2349.8,2349.2,1.06413]
[1725982286260,0.42556,2349.8,2349.6,0.42557]
[1725982286557,0.42555,2349.8,2349.6,0.42557]
[1725982286859,0.42553,2349.9,2349.7,0.42555]
[1725982287856,0.42557,2349.7,2349.5,0.42559]
[1725982288457,0.42557,2349.7,2349.4,0.3667]
[1725982288655,1.44165,2350.1,2349.1,1.43186]
[1725982288858,1.06391,2349.7,2349.1,0.42566]
[1725982289166,0.42567,2349.1,2349.0,0.42568]
[1725982289355,0.42566,2349.2,2349.0,0.42568]
[1725982289557,0.42566,2349.2,2349.0,0.42569]
[1725982289558,0.3963,2349.1,2349.0,0.42569]
[1725982289957,0.82197,2349.1,2349.0,0.42569]
[1725982290163,0.3963,2349.1,2348.7,0.3667]
[1725982290677,0.3963,2349.1,2349.0,0.42569]
[1725982291064,0.82197,2349.1,2349.0,0.42569]
[1725982292358,0.3963,2349.1,2348.7,0.3667]
[1725982292769,0.82198,2349.1,2349.0,0.42569]
[1725982293175,1.06403,2349.5,2349.0,4.2568]
[1725982293465,1.06403,2349.5,2348.7,1.43105]
[1725982293466,0.42563,2349.4,2349.3,0.42562]
[1725982293870,0.81391,2349.5,2349.3,0.42562]
[1725982294056,0.42561,2349.4,2349.3,0.42562]
[1725982294260,0.3883,2349.5,2348.9,1.06427]
[1725982294563,0.42564,2349.3,2349.2,0.42564]
[1725982295163,0.42563,2349.4,2349.2,0.42564]
[1725982295766,2.17802228,2349.9,2349.5,0.42558]
[1725982295965,2.17802228,2349.9,2349.6,0.42557]
[1725982295966,0.42557,2349.7,2349.6,0.42557]
[1725982296167,0.3883,2349.8,2349.7,0.42556]
[1725982296470,0.42551,2350.0,2349.6,0.21560719]
[1725982296771,4.144,2350.3,2349.7,0.42555]
[1725982296772,1.06373,2350.1,2349.7,0.42555]
[1725982296967,0.4255,2350.1,2349.9,0.42552]
[1725982297269,0.4255,2350.1,2349.5,1.064]
[1725982297476,5.58366,2350.3,2349.8,0.42553]
[1725982297770,0.42552,2349.9,2349.8,0.42553]
[1725982298070,0.42553,2349.9,2349.4,1.06404]
[1725982298265,0.42554,2349.9,2349.3,2.19760607]
[1725982298567,0.42552,2350.0,2349.8,0.42554]
[1725982298871,0.42552,2350.0,2349.3,0.7831]
[1725982298872,1.06377,2350.0,2349.3,0.7831]
[1725982299072,0.42555,2349.8,2349.6,0.42558]
[1725982299368,0.42556,2349.7,2349.3,0.7831]
[1725982299568,0.42557,2349.7,2349.3,0.7831]
[1725982299772,0.42557,2349.7,2349.5,0.42558]
[1725982300264,1.11417228,2350.2,2349.6,4.256]
[1725982300465,0.42551,2350.0,2349.9,0.42552]
[1725982300767,0.42548,2350.2,2350.1,0.42548]
[1725982301266,1.17426,2350.3,2350.1,0.42548]
[1725982301461,0.42547,2350.2,2349.8,41.1656]
[1725982301665,0.42547,2350.2,2350.1,0.42549]
[1725982301868,0.42547,2350.2,2349.8,41.1656]
[1725982302171,0.42547,2350.2,2350.1,0.42549]
[1725982302679,0.42547,2350.2,2350.1,0.42547]
[1725982303564,0.376,2350.3,2350.1,0.42549]
[1725982303872,0.42547,2350.2,2350.1,0.42549]
[1725982304461,0.376,2350.3,2349.8,0.7436]
[1725982304665,0.80146,2350.3,2350.1,0.42547]
[1725982304867,0.80146,2350.3,2349.8,1.80745]
[1725982305074,0.80146,2350.3,2350.2,0.42547]
[1725982305278,0.80146,2350.3,2350.1,0.42547]
[1725982305466,0.80146,2350.3,2349.8,1.80745]
[1725982305666,2.7325686,2350.5,2349.9,4.2552]
[1725982305667,1.11417228,2350.5,2349.9,4.2552]
[1725982305867,5.8130086,2350.6,2350.5,0.42542]
[1725982305868,1.53957228,2350.6,2350.5,0.42542]
[1725982306076,1.48697228,2350.7,2350.6,0.4254]
[1725982306280,2.0560086,2350.8,2350.7,0.42538]
[1725982306281,0.42536,2350.8,2350.7,0.42538]
[1725982306874,0.42537,2350.8,2350.6,0.42538]
[1725982307179,0.42537,2350.8,2350.7,0.42538]
[1725982307577,0.42537,2350.8,2350.6,0.42538]
[1725982307778,0.42535,2350.9,2350.4,1.06359]
[1725982307979,0.42536,2350.8,2350.7,0.42537]
[1725982308179,0.42536,2350.8,2350.3,1.1372]
[1725982308576,0.42535,2350.9,2350.7,0.42537]
[1725982309479,0.42534,2350.9,2350.8,0.42536]
[1725982309681,0.387,2351.0,2350.9,0.42534]
[1725982310074,0.81232,2351.0,2350.9,0.42534]
[1725982310274,0.42537,2350.8,2350.3,1.1372]
[1725982310575,0.387,2351.0,2350.3,1.1372]
[1725982310576,2.56451228,2351.0,2350.3,0.753]
[1725982310884,0.4254,2350.6,2350.3,0.753]
[1725982311084,0.4254,2350.6,2350.4,0.42543]
[1725982311279,1.06343,2350.8,2350.3,0.381]
[1725982311486,0.42542,2350.5,2350.3,0.80644]
[1725982312280,0.42541,2350.6,2350.4,0.42543]
[1725982312476,0.4046,2350.5,2350.4,0.42543]
[1725982312676,0.79559,2350.7,2350.5,0.4254]
[1725982312981,0.81457,2350.8,2350.6,0.4254]
[1725982313174,0.42537,2350.8,2350.6,0.4254]
[1725982313582,0.42537,2350.8,2350.6,0.42539]
[1725982313777,0.4046,2350.9,2350.5,0.4254]
[1725982314085,0.42537,2350.8,2350.6,0.4254]
[1725982315485,0.42537,2350.8,2350.7,0.42538]
[1725982315687,0.42537,2350.8,2350.6,0.42538]
[1725982315985,0.4046,2350.9,2350.8,0.42536]
[1725982316189,0.42532,2351.1,2350.8,4.2536]
[1725982316393,0.8299,2351.2,2351.0,0.42531]
[1725982316581,0.4046,2351.2,2351.1,0.42531]
[1725982316882,0.3696,2351.4,2351.3,0.42527]
[1725982317086,0.3696,2351.4,2350.8,1.06341]
[1725982317087,0.42526,2351.4,2350.8,1.06341]
[1725982317289,0.4046,2351.6,2351.0,0.7409]
[1725982317495,6.37211592,2352.0,2351.5,1.06309]
[1725982317496,1.11417228,2352.0,2351.5,1.06309]
[1725982317785,1.30167228,2352.8,2351.9,1.06291]
[1725982317979,0.3975,2352.8,2352.4,0.42507]
[1725982318181,2.7314586,2353.0,2352.4,0.42507]
[1725982318182,1.6690086,2353.0,2352.4,9.68]
[1725982318492,0.42495,2353.1,2352.4,3.88911188]
[1725982318787,0.42495,2353.1,2352.0,0.6039]
[1725982318788,0.42503,2352.7,2352.0,0.6039]
[1725982318984,0.42507,2352.5,2352.0,0.3879]
[1725982319189,1.06251,2352.8,2352.0,0.60031051]
[1725982319388,0.42508,2352.4,2352.0,0.81303]
[1725982319588,0.7996,2353.0,2352.0,0.3879]
[1725982319589,0.42509,2352.3,2352.0,0.3879]
[1725982319787,0.42507,2352.5,2352.1,0.42512]
[1725982319988,0.42508,2352.4,2352.1,0.42513]
[1725982320283,1.06246,2352.9,2351.6,45.20575225]
[1725982320491,3.68,2352.8,2351.6,45.06922345]
[1725982320680,0.42512,2352.2,2351.6,41.38922345]
[1725982320878,0.42516,2352.0,2351.6,41.6002]
[1725982321081,1.06273,2352.4,2351.5,0.42523]
[1725982321082,1.06284,2352.1,2351.5,0.42523]
[1725982321279,1.06284,2352.1,2351.0,3.896]
[1725982321280,0.42518,2351.8,2351.1,0.6029]
[1725982321483,0.42518,2351.8,2351.5,0.42523]
[1725982321679,0.3851,2351.9,2351.6,0.20737748]
[1725982321889,0.3851,2351.9,2351.2,40.8]
[1725982322190,0.3851,2351.9,2351.1,0.3869]
[1725982322191,1.06297,2351.8,2351.1,0.3869]
[1725982322382,1.06297,2351.8,2350.9,0.79523]
[1725982322383,0.42529,2351.2,2350.9,0.79523]
[1725982322579,1.06296,2351.8,2350.8,0.42535]
[1725982322580,0.42531,2351.1,2350.8,0.42535]
[1725982322779,0.3851,2351.1,2350.6,0.7406]
[1725982323197,3.68,2351.9,2350.8,3.68]
[1725982323487,0.42524,2351.5,2350.8,3.68]
[1725982323678,0.81033,2351.6,2350.8,3.68]
[1725982323986,0.3851,2351.6,2351.5,0.42523]
[1725982324193,0.3851,2351.6,2351.3,0.20805782]
[1725982324493,0.4021,2352.0,2351.8,0.42517]
[1725982324711,0.80313,2352.2,2351.9,0.42516]
[1725982325586,0.80313,2352.2,2351.7,0.42519]
[1725982325587,0.378,2352.2,2351.7,0.42519]
[1725982325788,0.42515,2352.0,2351.4,0.60658253]
[1725982325984,0.42517,2351.9,2351.4,0.60658253]
[1725982326178,0.378,2352.2,2351.4,0.60658253]
[1725982326392,10.47287894,2351.8,2350.9,0.216]
[1725982326585,10.47287894,2351.8,2350.2,1.10338351]
[1725982326586,0.3953,2351.7,2350.8,0.42535]
[1725982326783,0.3953,2351.7,2350.9,0.42533]
[1725982326784,0.42528,2351.3,2350.9,0.42533]
[1725982327080,1.45195,2351.6,2350.5,0.7892]
[1725982327081,1.06314,2351.4,2350.5,0.7892]
[1725982327488,0.4253,2351.2,2350.8,0.42535]
[1725982327690,0.42532,2351.0,2350.6,0.4254]
[1725982327882,0.3889,2350.9,2350.5,0.7892]
[1725982328191,0.3889,2350.9,2350.7,0.42537]
[1725982328394,0.81425,2350.9,2350.5,0.81711]
[1725982328687,0.42545,2350.4,2350.0,0.42549]
[1725982328884,14.88964066,2350.8,2349.6,41.1975]
[1725982328885,0.3889,2350.3,2349.6,41.1975]
[1725982329203,11.02414066,2350.3,2349.0,0.216]
[1725982329400,11.02414066,2350.3,2349.0,0.21039603]
[1725982329401,1.06377,2350.0,2349.0,0.21039603]
[1725982329696,1.06377,2350.0,2349.1,40.8]
[1725982329697,0.42559,2349.6,2349.1,40.8]
[1725982329890,0.42559,2349.6,2348.7,0.3975]
[1725982329891,1.06396,2349.6,2348.7,0.3975]
[1725982330086,0.42564,2349.3,2348.7,0.3975]
[1725982330278,0.42561,2349.4,2348.8,0.42571]
[1725982330484,0.79841,2349.5,2348.9,0.4257]
[1725982330895,0.3728,2349.5,2348.7,0.60519538]
[1725982331188,0.3728,2349.5,2348.9,0.4257]
[1725982331391,10.45695314,2349.6,2348.7,0.60519538]
[1725982331589,0.79833,2349.9,2348.7,0.60519538]
[1725982331889,0.3728,2349.9,2349.4,0.42561]
[1725982332093,0.3728,2349.9,2349.0,4.13]
[1725982332293,0.42549,2350.2,2349.6,0.42557]
[1725982332503,1.83852,2350.6,2349.1,0.3821]
[1725982332504,0.42545,2350.3,2349.1,0.3821]
[1725982332792,0.4255,2350.1,2349.1,0.3821]
[1725982332990,0.42544,2350.4,2349.3,4.13]
[1725982333190,0.42544,2350.4,2349.9,0.42551]
[1725982333392,0.79822,2350.5,2350.0,0.42551]
[1725982333889,0.3728,2350.5,2349.3,4.346]
[1725982334192,0.79823,2350.5,2350.0,0.4255]
[1725982334591,0.3728,2350.5,2349.9,0.21529277]
[1725982334786,0.3728,2350.5,2349.3,4.346]
[1725982334787,0.79822,2350.5,2350.0,0.4255]
[1725982334988,0.42543,2350.4,2350.0,0.4255]
[1725982335293,0.3728,2350.5,2350.1,0.42549]
[1725982335493,0.42544,2350.4,2349.5,0.3935]
[1725982335796,0.3728,2350.5,2349.5,0.3935]
[1725982335797,0.42548,2350.2,2349.5,0.3935]
[1725982335993,0.42548,2350.2,2349.7,0.42555]
[1725982336196,0.42548,2350.2,2349.7,0.42554]
[1725982336392,0.42548,2350.2,2349.8,0.42553]
[1725982336801,0.3728,2350.5,2349.5,0.3935]
[1725982336995,0.216,2351.5,2350.3,4.13]
[1725982337294,0.3753,2351.4,2351.1,0.42529]
[1725982337505,0.3753,2351.4,2350.8,4.13]
[1725982337797,0.3753,2351.4,2351.0,0.42532]
[1725982337989,0.80056,2351.4,2351.0,41.22532]
[1725982338191,0.80056,2351.4,2351.0,40.8]
[1725982338192,0.3753,2351.4,2351.0,40.8]
[1725982338385,0.3753,2351.4,2351.1,0.42531]
[1725982339001,0.42525,2351.5,2351.1,0.42531]
[1725982339002,0.42519,2351.8,2351.4,0.42525]
[1725982339299,0.42522,2351.6,2351.2,0.42529]
[1725982339901,0.7897,2352.0,2351.0,40.8]
[1725982340199,0.399,2352.0,2351.7,0.42519]
[1725982340498,0.42516,2351.9,2351.5,0.42522]
[1725982340697,0.82415,2352.0,2351.6,0.42521]
[1725982340896,0.82415,2352.0,2351.1,5.55817]
[1725982341089,0.42517,2351.9,2351.1,4.4949]
[1725982341292,0.82415,2352.0,2351.1,4.4949]
[1725982341492,0.82415,2352.0,2351.6,0.42522]
[1725982341692,0.399,2352.0,2351.7,0.4252]
[1725982341899,0.82415,2352.0,2351.6,0.42521]
[1725982342102,0.399,2352.0,2351.1,4.4949]
[1725982342293,0.82415,2352.0,2351.6,0.42521]
[1725982342601,0.399,2352.0,2351.1,4.4949]
[1725982343099,0.82415,2352.0,2351.5,0.42522]
[1725982343403,0.82415,2352.0,2351.6,0.42521]
[1725982343600,0.82415,2352.0,2351.1,4.4949]
[1725982343799,0.82415,2352.0,2351.6,0.42521]
[1725982344002,0.42517,2351.9,2351.5,0.42523]
[1725982344298,0.399,2352.0,2351.1,4.4949]
[1725982344494,0.4252,2351.8,2351.3,0.42527]
[1725982344703,1.06291,2351.9,2350.8,44.93]
[1725982344995,0.399,2352.0,2350.8,0.42535]
[1725982344996,1.06305,2351.6,2350.8,0.42535]
[1725982345300,0.42532,2351.1,2350.5,0.3736]
[1725982345605,0.42532,2351.1,2350.7,0.42537]
[1725982345798,0.42533,2351.0,2350.5,0.3736]
[1725982345994,0.42531,2351.1,2350.7,0.42537]
[1725982346195,0.3932,2351.3,2350.5,0.3736]
[1725982346398,0.4253,2351.2,2350.7,0.42537]
[1725982347092,0.42531,2351.2,2350.7,0.42537]
[1725982347494,0.42531,2351.1,2350.7,0.42537]
[1725982348095,0.4253,2351.2,2350.7,0.42537]
[1725982348293,0.42531,2351.1,2350.7,0.42537]
[1725982349005,0.4253,2351.2,2350.8,0.42536]
[1725982349399,0.3932,2351.3,2350.5,0.3736]
[1725982349597,1.06323,2351.2,2350.3,40.8]
[1725982349908,0.42539,2350.7,2350.3,0.42545]
[1725982350203,0.42543,2350.5,2350.0,0.4255]
[1725982350409,0.4254,2350.6,2350.2,0.42546]
[1725982350611,4.144,2350.9,2350.1,1.06373]
[1725982350806,4.144,2350.9,2350.7,0.42537]
[1725982351005,0.42533,2351.0,2350.6,0.42539]
[1725982351206,0.42533,2351.0,2350.2,4.13]
[1725982351406,0.42533,2351.0,2350.6,0.42539]
[1725982351807,0.42533,2351.0,2350.7,0.42538]
[1725982352006,10.5812071,2351.2,2350.2,4.13]
[1725982352311,0.42532,2351.1,2350.7,0.42537]
[1725982352507,10.5812071,2351.2,2350.3,0.394]
[1725982352716,0.42532,2351.1,2350.7,0.42537]
[1725982353103,0.42533,2351.0,2350.6,0.42539]
[1725982353614,0.42533,2351.0,2350.3,0.394]
[1725982353615,0.42533,2351.0,2350.7,0.42538]
[1725982353814,0.42533,2351.0,2350.3,0.394]
[1725982354007,4.144,2351.8,2350.5,5.19355]
[1725982354203,0.4051,2351.4,2350.6,1.0635]
[1725982354504,0.42529,2351.2,2350.5,4.13]
[1725982354703,0.42528,2351.3,2350.5,4.13]
[1725982355109,0.42528,2351.3,2351.0,0.42532]
[1725982355504,0.42528,2351.3,2350.9,0.42533]
[1725982355708,0.42528,2351.3,2351.0,0.42532]
[1725982355913,0.83036,2351.4,2351.0,0.42532]
[1725982356616,0.42527,2351.3,2351.0,0.42532]
[1725982356811,0.42528,2351.3,2350.9,0.42533]
[1725982357004,0.42528,2351.3,2351.0,0.42532]
[1725982357510,0.42527,2351.3,2350.9,0.42533]
[1725982358112,0.42527,2351.3,2350.6,0.3688]
[1725982358113,0.42527,2351.3,2351.0,0.42532]
[1725982358311,0.4253,2351.2,2350.6,4.0488]
[1725982358516,0.4253,2351.2,2350.9,0.42533]
[1725982358713,0.4051,2351.4,2350.6,4.0488]
[1725982358912,0.42528,2351.3,2350.6,4.0488]
[1725982359116,0.42528,2351.3,2351.0,0.42532]
[1725982359319,0.42529,2351.2,2350.6,4.0488]